bitfinex-derivatives/quotes_ETHF0:USTF0_20250126
["timestamp","ask_amount","ask_price","bid_price","bid_amount"]
[1737928416794,0.60579,3301.8,3301.7,0.90862283]
[1737928417096,5.60579,3301.8,3301.7,0.90862283]
[1737928419993,6.51449,3301.8,3300.5,1.63657896]
[1737928420196,3.2078,3301.2,3300.8,1.63202999]
[1737928420393,3.2078,3301.2,3301.1,1.63202999]
[1737928420888,8.2078,3301.2,3301.1,1.63202999]
[1737928421695,8.2078,3301.2,3300.8,3.86852999]
[1737928422198,8.2078,3301.2,3300.6,0.90892564]
[1737928422390,0.60595,3301.0,3300.6,0.90892564]
[1737928422894,1.1135,3300.9,3300.6,0.90892564]
[1737928423189,5.0,3301.0,3300.8,1.63202999]
[1737928423390,5.0,3301.0,3300.8,2.23799999]
[1737928423993,5.0,3301.0,3300.8,1.63202999]
[1737928427395,3.2078,3301.2,3300.8,1.63202999]
[1737928427595,3.02195115,3301.2,3301.1,1.63202999]
[1737928427897,2.50133,3302.2,3301.1,1.63202999]
[1737928427898,3.2078,3301.9,3301.1,4.83982999]
[1737928428096,3.2078,3301.9,3301.8,1.63202999]
[1737928428399,2.2494,3302.1,3301.8,1.63202999]
[1737928428693,2.2494,3302.1,3301.8,2.77722999]
[1737928429589,7.2494,3302.1,3301.8,2.77722999]
[1737928429792,0.60577,3302.0,3301.5,1.63202999]
[1737928429993,2.2494,3302.1,3301.5,1.63202999]
[1737928430199,10.4572,3302.1,3301.5,1.63202999]
[1737928430498,0.60581,3301.7,3301.5,1.63202999]
[1737928430699,10.4572,3302.1,3301.3,1.1452]
[1737928430896,0.60584,3301.6,3301.2,1.63202999]
[1737928431398,2.1981,3301.5,3301.2,1.63202999]
[1737928431702,0.60588,3301.3,3301.2,1.63202999]
[1737928432095,5.0,3301.3,3301.2,1.63202999]
[1737928434401,5.60588,3301.3,3301.2,1.63202999]
[1737928436005,0.6059,3301.2,3300.9,3.88132999]
[1737928436197,0.6059,3301.2,3300.9,1.63202999]
[1737928436403,0.60595,3300.9,3300.6,2.54095563]
[1737928436600,3.2078,3301.3,3300.6,2.54095563]
[1737928436799,0.60594,3301.0,3300.6,2.54095563]
[1737928436995,8.2078,3301.3,3300.6,2.54095563]
[1737928437201,0.60599,3300.7,3300.6,0.90892564]
[1737928437804,7.85629,3300.7,3300.6,0.90892564]
[1737928440208,7.2503,3300.7,3300.6,0.90892564]
[1737928440595,5.0,3300.7,3300.6,0.90892564]
[1737928440796,3.2078,3301.2,3300.8,0.60597]
[1737928441093,3.2078,3301.2,3300.9,2.72702999]
[1737928441300,8.2078,3301.2,3300.9,2.72702999]
[1737928441498,5.0,3301.2,3300.9,2.72702999]
[1737928441910,5.6059,3301.2,3300.9,2.72702999]
[1737928442099,5.6059,3301.2,3300.9,1.095]
[1737928442300,0.60594,3301.0,3300.6,0.90892564]
[1737928442603,0.60597,3300.8,3300.6,0.90892564]
[1737928442802,1.1296,3300.7,3300.6,0.90892564]
[1737928443305,6.1296,3300.7,3300.6,0.90892564]
[1737928444505,5.0,3300.7,3300.6,2.54095563]
[1737928444699,3.2078,3301.2,3300.6,2.54095563]
[1737928444700,1.117,3301.1,3300.6,2.54095563]
[1737928444900,1.117,3301.1,3300.9,1.63202999]
[1737928445100,6.117,3301.1,3300.9,1.63202999]
[1737928446307,6.117,3301.1,3300.6,2.54095563]
[1737928446308,9.3248,3301.1,3300.6,2.54095563]
[1737928446505,0.60596,3300.9,3300.6,2.54095563]
[1737928446709,1.0884,3301.0,3300.6,0.90892564]
[1737928447010,0.60599,3300.7,3300.6,0.90892564]
[1737928447502,5.60599,3300.7,3300.6,0.90892564]
[1737928447699,8.81379,3300.7,3299.9,13.8121]
[1737928447901,0.60611,3300.1,3299.9,10.69686551]
[1737928448100,3.2078,3300.3,3299.9,10.69686551]
[1737928448303,1.1309,3300.5,3300.0,1.63202999]
[1737928448610,1.1348,3300.6,3300.4,0.60604]
[1737928448810,1.1348,3300.6,3300.3,1.63202999]
[1737928449010,1.1348,3300.6,3300.4,0.60603]
[1737928450009,0.00454897,3300.8,3300.4,0.60603]
[1737928450310,0.00454897,3300.8,3300.7,0.60599]
[1737928450609,0.00454897,3300.8,3300.7,3.81379]
[1737928450805,0.00454897,3300.8,3300.7,4.97139]
[1737928451005,0.00454897,3300.8,3300.7,7.25609]
[1737928453206,0.00454897,3300.8,3300.7,8.88811999]
[1737928454917,0.00454897,3300.8,3300.7,9.13330119]
[1737928455907,9.38612127,3301.8,3301.1,0.6059]
[1737928456212,11.07471127,3301.8,3301.4,1.63202999]
[1737928456706,10.46892127,3301.8,3301.4,1.63202999]
[1737928456905,11.07471127,3301.8,3301.4,1.63202999]
[1737928457808,10.46892127,3301.8,3301.1,3.2078]
[1737928458015,0.60583,3301.6,3301.1,4.83982999]
[1737928458211,10.46892127,3301.8,3301.1,3.2078]
[1737928458415,0.6059,3301.2,3301.1,3.2078]
[1737928458713,3.2078,3301.4,3300.8,1.63202999]
[1737928458915,2.85202,3301.1,3300.8,1.63202999]
[1737928460217,2.2461,3301.1,3300.7,3.2078]
[1737928460415,0.60595,3300.9,3300.7,3.2078]
[1737928462918,2.2461,3301.1,3300.5,2.23804999]
[1737928463114,2.2461,3301.1,3300.8,1.63202999]
[1737928463318,2.2461,3301.1,3300.9,1.1216]
[1737928463917,10.50370789,3301.0,3300.9,1.1216]
[1737928466122,10.50370789,3301.0,3300.9,1.72755]
[1737928467626,3.2078,3301.4,3301.0,0.60592]
[1737928467827,3.2078,3301.4,3301.1,1.63202999]
[1737928469819,3.2078,3301.4,3301.1,2.23793999]
[1737928472819,10.50370789,3301.5,3301.1,2.23793999]
[1737928474026,10.50370789,3301.5,3301.4,1.63202999]
[1737928474222,10.50370789,3301.5,3301.4,2.23788999]
[1737928476725,7.99153545,3301.5,3301.4,2.23788999]
[1737928479134,7.99153545,3301.5,3301.4,3.14659538]
[1737928480132,6.93633545,3301.5,3301.4,3.14659538]
[1737928480529,6.93633545,3301.5,3301.4,2.54073538]
[1737928481135,8.06523545,3301.5,3301.4,2.54073538]
[1737928481335,1.1289,3301.5,3301.4,2.54073538]
[1737928485432,0.00454897,3301.9,3301.4,2.54073538]
[1737928485637,0.60579,3301.8,3301.4,2.54073538]
[1737928486126,2.30144897,3301.9,3301.7,1.63202999]
[1737928488737,2.90722897,3301.9,3301.4,2.54073538]
[1737928489032,2.30144897,3301.9,3301.4,3.14659538]
[1737928491034,2.30144897,3301.9,3301.5,0.60583]
[1737928491635,2.30144897,3301.9,3301.4,3.14658538]
[1737928493937,2.90721897,3301.9,3301.4,2.54073538]
[1737928494835,2.30144897,3301.9,3301.4,3.14659538]
[1737928495032,0.00454897,3301.9,3301.8,0.60579]
[1737928495439,0.00454897,3301.9,3301.8,1.73029]
[1737928495636,0.00454897,3301.9,3301.7,1.63202999]
[1737928502840,0.00454897,3301.9,3301.5,4.3323]
[1737928502841,0.61032897,3301.9,3301.5,3.2078]
[1737928503033,0.61032897,3301.9,3301.4,0.90870539]
[1737928503034,0.60581,3301.7,3301.4,0.90870539]
[1737928503233,2.2358,3301.8,3301.4,0.90870539]
[1737928503442,2.84159,3301.8,3301.4,2.54073538]
[1737928503944,2.2358,3301.8,3301.4,3.14658538]
[1737928505046,2.2358,3301.8,3301.4,2.54073538]
[1737928505438,0.6058,3301.7,3301.4,2.54073538]
[1737928508649,2.2358,3301.8,3301.4,2.54073538]
[1737928508836,2.8416,3301.8,3301.4,2.54073538]
[1737928509443,2.2358,3301.8,3301.4,2.54073538]
[1737928510040,2.2358,3301.8,3301.5,1.1552]
[1737928510241,2.2358,3301.8,3301.5,1.76103]
[1737928510548,2.2358,3301.8,3301.5,2.93253]
[1737928511346,3.21234897,3301.9,3301.5,2.93253]
[1737928511648,3.21234897,3301.9,3301.7,1.63202999]
[1737928512040,0.00454897,3301.9,3301.7,1.63202999]
[1737928513551,0.00454897,3301.9,3301.7,2.23782999]
[1737928516043,0.00454897,3301.9,3301.7,1.63202999]
[1737928516550,0.00454897,3301.9,3301.7,2.23782999]
[1737928517249,0.00454897,3301.9,3301.7,1.63202999]
[1737928517450,0.00454897,3301.9,3301.7,2.23781999]
[1737928518450,0.00454897,3301.9,3301.7,1.63202999]
[1737928518654,0.00454897,3301.9,3301.8,0.60578]
[1737928518849,0.00454897,3301.9,3301.7,2.23781999]
[1737928519853,0.00454897,3301.9,3301.7,1.63202999]
[1737928520054,0.00454897,3301.9,3301.7,2.23781999]
[1737928522150,0.00454897,3301.9,3301.7,1.63202999]
[1737928522347,0.00454897,3301.9,3301.7,2.23781999]
[1737928523149,0.00454897,3301.9,3301.5,2.3267]
[1737928523150,0.61032897,3301.9,3301.5,2.93252]
[1737928523746,2.3104,3301.8,3301.5,2.93252]
[1737928524453,0.60581,3301.6,3301.4,4.11650539]
[1737928524658,1.1759,3301.5,3301.4,4.11650539]
[1737928526852,1.1759,3301.5,3301.4,5.74853538]
[1737928529153,1.1759,3301.5,3301.4,2.54073538]
[1737928532662,11.69535642,3301.7,3301.4,2.54073538]
[1737928533865,10.56951294,3301.6,3301.4,2.54073538]
[1737928546069,3.81363,3301.5,3301.4,0.90870539]
[1737928546773,4.5849598,3301.5,3301.4,0.90870539]
[1737928547970,4.5849598,3301.5,3300.8,0.7713298]
[1737928547971,0.60594,3300.9,3300.8,0.7713298]
[1737928548178,0.60594,3300.9,3300.6,0.7713298]
[1737928548480,2.3293,3300.8,3300.6,0.7713298]
[1737928548680,2.3293,3300.8,3300.5,0.606]
[1737928548880,2.3293,3300.8,3300.3,3.96175655]
[1737928549083,2.3293,3300.8,3300.4,0.60602]
[1737928549472,2.3293,3300.8,3300.3,4.56779655]
[1737928551185,1.1666,3300.7,3300.3,4.56779655]
[1737928551382,0.60602,3300.5,3300.2,0.00454897]
[1737928551581,0.60605,3300.3,3300.2,0.00454897]
[1737928552489,4.3744,3300.7,3300.2,0.00454897]
[1737928552989,0.60602,3300.5,3300.2,0.00454897]
[1737928553283,4.3744,3300.7,3300.3,1.62975655]
[1737928553688,4.3744,3300.7,3300.4,1.1704]
[1737928555476,1.1666,3300.7,3300.5,0.606]
[1737928556390,1.1666,3300.7,3300.4,1.1704]
[1737928556391,1.1666,3300.7,3300.4,1.77642]
[1737928557692,0.60604,3300.4,3300.2,0.00454897]
[1737928557880,1.125,3300.3,3300.2,0.00454897]
[1737928561890,1.1666,3300.7,3300.2,3.21234897]
[1737928562190,1.1666,3300.7,3300.2,0.00454897]
[1737928562583,0.60604,3300.4,3300.2,0.00454897]
[1737928562783,1.1666,3300.7,3300.2,0.00454897]
[1737928562986,1.77235,3300.3,3300.2,0.00454897]
[1737928563993,1.1666,3300.7,3300.2,5.44815552]
[1737928564293,1.1663,3300.6,3300.3,1.1874]
[1737928564485,1.1663,3300.6,3300.3,2.3402]
[1737928564684,1.1663,3300.6,3300.3,2.94625]
[1737928564884,11.73581294,3300.6,3300.3,2.3402]
[1737928566391,10.56951294,3300.6,3300.5,1.62975655]
[1737928566592,10.56951294,3300.6,3300.5,2.23576655]
[1737928567291,0.29267335,3300.6,3300.5,8.8655231]
[1737928567492,2.2793,3301.5,3300.5,8.2595131]
[1737928567696,2.2793,3301.5,3301.4,1.62975655]
[1737928569695,11.69535642,3301.7,3301.4,2.23559655]
[1737928569886,11.69535642,3301.7,3301.5,0.60581]
[1737928570801,11.69535642,3301.7,3301.4,2.23558655]
[1737928571001,11.69535642,3301.7,3301.4,1.62975655]
[1737928571195,1.1245,3301.6,3301.4,1.62975655]
[1737928573895,1.73031,3301.6,3301.4,1.62975655]
[1737928574092,1.1245,3301.6,3301.4,1.62975655]
[1737928574293,1.73033,3301.6,3301.4,1.62975655]
[1737928575605,0.60583,3301.5,3301.4,1.62975655]
[1737928575802,4.3323,3301.6,3301.1,1.62975655]
[1737928576005,4.3323,3301.6,3301.0,3.2078]
[1737928576199,0.60593,3301.1,3301.0,3.2078]
[1737928576400,0.60596,3301.0,3300.5,1.62975655]
[1737928576606,2.2566,3300.9,3300.5,1.62975655]
[1737928577199,2.2566,3300.9,3300.8,1.62975655]
[1737928578310,3.2078,3301.1,3300.8,1.62975655]
[1737928578510,3.81365,3301.5,3300.8,2.23570655]
[1737928578911,3.81365,3301.5,3301.1,1.62975655]
[1737928579502,1.1294,3301.4,3301.1,1.62975655]
[1737928580106,1.73526,3301.4,3301.1,1.62975655]
[1737928581310,1.1294,3301.4,3301.1,1.62975655]
[1737928582014,1.1294,3301.4,3300.8,1.62975655]
[1737928582410,0.60594,3301.0,3300.7,3.2078]
[1737928582617,2.2918,3300.9,3300.7,3.2078]
[1737928582916,0.60599,3300.7,3300.5,1.62975655]
[1737928583909,0.60602,3300.6,3300.3,0.90900827]
[1737928584819,1.2179,3300.8,3300.3,0.90900827]
[1737928585119,0.60602,3300.6,3300.3,0.90900827]
[1737928586320,3.8138,3300.7,3300.3,0.90900827]
[1737928586617,3.2078,3300.7,3300.3,0.90900827]
[1737928586817,3.2078,3300.7,3300.5,1.62975655]
[1737928589920,0.60601,3300.6,3300.3,0.90900827]
[1737928591526,3.2078,3300.7,3300.3,0.90900827]
[1737928592730,3.81379,3300.7,3300.3,0.90900827]
[1737928593030,0.60601,3300.6,3300.3,0.90900827]
[1737928593826,3.2078,3300.7,3300.3,0.90900827]
[1737928594028,0.60604,3300.4,3300.3,0.90900827]
[1737928594329,0.60606,3300.3,3300.2,0.00454897]
[1737928594531,4.3513,3300.3,3299.6,1.62975655]
[1737928594832,0.60616,3299.8,3299.6,1.62975655]
[1737928595030,1.1435,3299.7,3299.6,1.62975655]
[1737928596832,1.74967,3299.7,3299.6,1.62975655]
[1737928597928,1.74967,3299.7,3299.3,1.63430552]
[1737928598136,1.1288,3299.6,3299.3,1.63430552]
[1737928598431,1.735,3299.6,3299.3,1.63430552]
[1737928598634,1.73499,3299.6,3299.3,1.63430552]
[1737928599334,1.1288,3299.6,3299.3,1.63430552]
[1737928602235,3.2078,3299.5,3299.3,1.63430552]
[1737928605134,1.1435,3299.7,3299.3,1.63430552]
[1737928605334,1.2303,3299.8,3299.6,1.62975655]
[1737928606239,1.2303,3299.8,3299.6,2.84635655]
[1737928606429,3.2078,3299.9,3299.8,0.60616]
[1737928606634,0.00454897,3300.0,3299.9,0.60614]
[1737928606836,0.00454897,3300.0,3299.9,2.23589655]
[1737928607633,1.2393,3300.8,3299.9,7.23589655]
[1737928607835,2.951,3302.6,3299.8,0.24722424]
[1737928607836,1.1302,3301.0,3300.5,1.62975655]
[1737928608042,3.2078,3301.4,3301.0,0.60593]
[1737928608231,5.5773,3301.4,3301.0,0.60593]
[1737928608931,5.5773,3301.4,3300.9,1.63430552]
[1737928609744,0.00454897,3301.5,3301.3,1.62975655]
[1737928609931,0.00454897,3301.5,3301.4,0.60587]
[1737928610137,0.00454897,3301.5,3301.4,1.78487]
[1737928611233,3.2078,3302.2,3301.8,0.60578]
[1737928611435,3.2078,3302.2,3302.1,1.62975655]
[1737928616740,3.2078,3302.2,3301.8,1.62975655]
[1737928617040,3.2078,3302.2,3301.8,2.23555655]
[1737928617844,3.2078,3302.2,3301.4,4.3868]
[1737928617845,3.2078,3302.2,3302.1,1.62975655]
[1737928619845,1.1491,3302.4,3302.1,2.23549655]
[1737928620046,1.1491,3302.4,3302.3,0.60571]
[1737928620745,0.00454897,3302.5,3302.1,1.62975655]
[1737928620940,0.00454897,3302.5,3302.4,2.23544655]
[1737928621136,2.3955,3303.3,3302.4,1.62975655]
[1737928621344,2.3955,3303.3,3303.2,1.62975655]
[1737928624451,2.3955,3303.3,3303.2,2.23529655]
[1737928625248,2.3955,3303.3,3303.2,1.62975655]
[1737928629853,3.2078,3303.4,3303.2,1.62975655]
[1737928631351,1.198,3303.3,3303.2,1.62975655]
[1737928632253,3.2078,3303.4,3303.3,0.60552]
[1737928632448,0.00454201,3303.6,3303.5,0.60548]
[1737928632650,0.00454201,3303.6,3303.5,1.62975655]
[1737928634052,0.00454201,3303.6,3303.5,2.23523655]
[1737928634253,0.00454201,3303.6,3303.4,0.60549]
[1737928634756,0.00454201,3303.6,3303.3,1.62975655]
[1737928634954,0.00454201,3303.6,3303.3,2.23526655]
[1737928635554,0.00454201,3303.6,3303.4,0.60549]
[1737928635750,0.00454201,3303.6,3303.3,2.23526655]
[1737928635955,0.00454201,3303.6,3303.3,1.62975655]
[1737928636155,0.00454201,3303.6,3303.3,2.23526655]
[1737928636746,0.00454201,3303.6,3303.3,1.62975655]
[1737928637552,0.61001201,3303.6,3303.3,1.62975655]
[1737928637750,3.2078,3303.4,3303.0,1.62975655]
[1737928637946,0.60553,3303.3,3303.0,1.62975655]
[1737928638149,1.2184,3303.2,3303.0,1.62975655]
[1737928638350,1.80766,3303.1,3303.0,1.62975655]
[1737928638662,0.60558,3303.0,3302.9,0.00454201]
[1737928638862,3.81338,3303.0,3302.9,0.00454201]
[1737928639056,3.2078,3303.0,3302.9,0.00454201]
[1737928643053,3.2078,3303.0,3302.4,1.62975655]
[1737928643363,3.2078,3302.5,3302.4,1.62975655]
[1737928644557,4.3424,3302.5,3302.4,1.62975655]
[1737928646156,3.2078,3302.5,3302.4,1.62975655]
[1737928646357,3.2078,3302.5,3302.4,2.23544655]
[1737928646558,5.587,3303.0,3302.5,0.60567]
[1737928646760,5.587,3303.0,3302.8,1.62975655]
[1737928648268,5.587,3303.0,3302.5,1.62975655]
[1737928648471,3.2078,3302.6,3302.5,1.62975655]
[1737928648663,3.2078,3302.6,3302.2,2.23546655]
[1737928648864,1.1269,3302.5,3302.2,2.23546655]
[1737928649067,1.1432,3302.4,3302.2,1.62975655]
[1737928649363,2.3615,3302.4,3302.2,1.62975655]
[1737928651871,0.6057,3302.3,3302.2,1.62975655]
[1737928653159,2.3615,3302.4,3302.2,1.62975655]
[1737928653376,2.9672,3302.4,3302.2,1.62975655]
[1737928654870,0.60572,3302.2,3302.1,0.91305477]
[1737928655072,3.2078,3302.2,3302.1,0.91305477]
[1737928657172,2.3615,3302.4,3302.1,0.91305477]
[1737928657473,2.3615,3302.4,3302.2,1.62975655]
[1737928659777,2.96719,3302.4,3302.2,1.62975655]
[1737928660776,2.3615,3302.4,3302.2,1.62975655]
[1737928660978,2.96719,3302.4,3302.2,1.62975655]
[1737928662369,2.3615,3302.4,3302.2,1.62975655]
[1737928662773,2.96719,3302.4,3302.2,1.62975655]
[1737928663987,2.3615,3302.4,3302.1,0.91305477]
[1737928664188,3.2078,3302.2,3302.1,0.91305477]
[1737928664487,3.81352,3302.2,3302.1,0.91305477]
[1737928675391,3.2078,3302.2,3302.1,0.91305477]
[1737928676192,3.81352,3302.2,3302.1,0.91305477]
[1737928676803,3.2078,3302.2,3302.1,0.91305477]
[1737928678303,3.81352,3302.2,3302.1,0.91305477]
[1737928679696,3.2078,3302.2,3301.3,1.62975655]
[1737928680000,3.2078,3301.6,3301.4,0.60586]
[1737928680395,3.2078,3301.6,3301.3,1.62975655]
[1737928680595,3.2078,3301.6,3301.5,0.60585]
[1737928683804,0.00454201,3301.9,3301.3,1.62975655]
[1737928684105,0.00454201,3301.9,3301.7,2.23554655]
[1737928684296,0.00454201,3301.9,3301.8,1.1618]
[1737928684499,0.00454201,3301.9,3301.8,2.76539]
[1737928686893,0.00454201,3301.9,3301.7,1.62975655]
[1737928687601,0.61032201,3301.9,3301.7,1.62975655]
[1737928688705,0.00454201,3301.9,3301.7,1.62975655]
[1737928689699,0.61032201,3301.9,3301.7,1.62975655]
[1737928692211,0.00454201,3301.9,3301.7,1.62975655]
[1737928692409,0.61032201,3301.9,3301.7,1.62975655]
[1737928692907,0.00454201,3301.9,3301.7,1.62975655]
[1737928693098,0.00454201,3301.9,3301.7,2.23555655]
[1737928694011,0.00454201,3301.9,3301.8,0.60579]
[1737928694203,0.00454201,3301.9,3301.7,2.23555655]
[1737928695003,0.00454201,3301.9,3301.8,0.60579]
[1737928695307,0.00454201,3301.9,3301.7,1.62975655]
[1737928695504,0.00454201,3301.9,3301.8,0.60579]
[1737928695709,0.00454201,3301.9,3301.8,1.71819]
[1737928697110,0.00454201,3301.9,3301.8,1.1124]
[1737928700710,0.00454201,3301.9,3301.8,1.71819]
[1737928706513,3.2078,3302.0,3301.9,0.60577]
[1737928706814,3.2078,3302.0,3301.9,1.83967]
[1737928708918,3.2078,3302.0,3301.7,1.62975655]
[1737928709114,3.2078,3302.0,3301.9,0.90856779]
[1737928709816,3.81356,3302.0,3301.9,0.90856779]
[1737928715415,0.6058,3301.8,3301.4,1.62975655]
[1737928716421,3.2078,3301.6,3301.4,1.62975655]
[1737928716622,2.3679,3301.5,3301.4,1.62975655]
[1737928717824,3.2078,3301.6,3301.4,1.62975655]
[1737928718520,3.2078,3301.6,3301.4,2.23564655]
[1737928719324,3.2078,3301.7,3301.4,1.62975655]
[1737928719525,3.2078,3301.7,3301.6,1.62975655]
[1737928725829,0.60581,3301.9,3301.6,1.62975655]
[1737928726227,3.2078,3301.7,3301.6,1.62975655]
[1737928726529,3.2078,3301.7,3301.6,0.77089864]
[1737928751044,3.2078,3301.9,3301.6,0.77089864]
[1737928751236,3.2078,3301.9,3301.8,0.77089864]
[1737928753141,3.2078,3301.9,3301.8,1.37671864]
[1737928754338,3.2078,3301.9,3301.8,0.77089864]
[1737928757740,3.2078,3301.9,3301.8,1.54179728]
[1737928758046,3.2078,3301.9,3301.8,2.14761728]
[1737928759744,11.72140171,3302.1,3301.8,1.54179728]
[1737928760048,11.72140171,3302.1,3302.0,2.14757728]
[1737928760437,1.1433,3302.2,3302.1,0.60576]
[1737928760845,1.1433,3302.2,3302.1,1.84196]
[1737928761444,1.1433,3302.2,3302.1,1.2362]
[1737928761650,1.74905,3302.2,3302.0,0.77089864]
[1737928761949,0.60576,3302.1,3302.0,0.77089864]
[1737928764541,0.6058,3301.9,3301.8,0.77089864]
[1737928764842,3.8136,3301.9,3301.8,0.77089864]
[1737928770749,0.60583,3301.7,3301.6,0.77089864]
[1737928770951,0.60591,3301.3,3301.2,0.77544065]
[1737928771252,3.81371,3301.3,3301.2,0.00454201]
[1737928773851,3.81371,3301.3,3301.0,0.77089864]
[1737928773852,3.97869864,3301.3,3300.8,0.77089864]
[1737928774060,3.2078,3300.9,3300.6,0.77089864]
[1737928774355,0.60602,3300.7,3300.6,0.77089864]
[1737928774744,1.2083,3300.8,3300.6,0.77089864]
[1737928774945,1.2083,3300.8,3300.7,0.60602]
[1737928775260,1.2083,3300.8,3300.6,1.37691864]
[1737928775553,1.2083,3300.8,3300.7,0.60602]
[1737928775753,1.2083,3300.8,3300.7,1.289]
[1737928775953,1.2083,3300.8,3300.6,0.77089864]
[1737928776153,0.60602,3300.7,3300.6,0.77089864]
[1737928776551,0.60605,3300.5,3300.4,0.77544065]
[1737928776754,3.81385,3300.5,3300.4,0.77544065]
[1737928777249,3.81385,3300.5,3300.4,0.00454201]
[1737928777445,3.97869864,3300.5,3299.9,0.90911845]
[1737928777646,0.60626,3299.4,3299.2,0.77089864]
[1737928777845,3.2078,3299.3,3299.2,0.77089864]
[1737928778053,5.00257,3299.3,3299.2,0.77089864]
[1737928778649,5.00257,3299.3,3298.9,1.63581054]
[1737928778857,4.3963,3299.3,3298.9,1.63581054]
[1737928779278,4.3963,3299.3,3298.9,0.00454201]
[1737928779552,0.6063,3299.2,3298.9,0.00454201]
[1737928779759,1.2122,3299.2,3298.9,0.00454201]
[1737928780657,0.60633,3299.0,3298.9,0.00454201]
[1737928781157,1.79842,3299.1,3298.9,0.00454201]
[1737928781350,1.1921,3299.1,3298.9,0.00454201]
[1737928781551,1.79842,3299.1,3298.9,0.00454201]
[1737928783262,1.1921,3299.1,3298.9,0.00454201]
[1737928783464,0.60633,3299.0,3298.9,0.00454201]
[1737928783759,1.1921,3299.1,3298.9,0.00454201]
[1737928783961,0.60633,3299.0,3298.9,0.00454201]
[1737928784362,1.1921,3299.1,3298.9,0.00454201]
[1737928784564,1.79842,3299.1,3298.9,0.00454201]
[1737928785560,1.1921,3299.1,3298.9,1.63581054]
[1737928785756,3.48740189,3299.3,3298.9,1.63581054]
[1737928785957,3.48740189,3299.3,3299.2,1.63126853]
[1737928787367,0.6063,3299.2,3298.9,1.63581054]
[1737928787664,3.48740189,3299.3,3298.9,1.63581054]
[1737928788569,4.09367189,3299.3,3298.9,1.63581054]
[1737928789270,0.60629,3299.2,3298.9,1.63581054]
[1737928789563,3.48740189,3299.3,3299.2,0.30302134]
[1737928790367,4.09367189,3299.3,3299.2,0.30302134]
[1737928795668,0.60633,3299.0,3298.9,0.00454201]
[1737928798872,0.60637,3298.8,3298.7,0.90944917]
[1737928799070,3.81417,3298.8,3298.7,0.90944917]
[1737928800766,8.81417,3298.8,3298.7,0.90944917]
[1737928800968,8.81417,3298.8,3297.8,0.90969737]
[1737928800969,1.51615,3298.3,3297.8,0.90969737]
[1737928801176,3.81433,3297.9,3297.8,0.90969737]
[1737928801472,1.51639,3297.8,3296.5,1.51698]
[1737928801667,3.2078,3297.2,3296.8,1.5166933]
[1737928801872,3.2078,3297.2,3296.8,0.9099733]
[1737928802071,1.1877,3297.1,3296.8,0.9099733]
[1737928802271,0.60672,3296.9,3296.8,0.9099733]
[1737928807778,1.2904,3297.0,3296.8,0.9099733]
[1737928807984,1.1877,3297.1,3296.9,0.60671]
[1737928808188,0.60672,3296.9,3296.8,0.9099733]
[1737928808677,2.23798853,3296.9,3296.8,0.9099733]
[1737928808885,1.51684,3296.8,3295.6,14.36826853]
[1737928809081,0.60694,3295.8,3295.4,3.81478]
[1737928809381,3.2078,3296.0,3295.4,3.2078]
[1737928809582,1.8505,3295.9,3295.4,3.2078]
[1737928809878,1.2436,3295.9,3295.5,0.60696]
[1737928810084,1.85051,3295.9,3295.4,3.2078]
[1737928810382,3.2078,3296.0,3295.6,1.63126853]
[1737928810582,3.2078,3296.0,3295.8,0.60691]
[1737928810885,3.2078,3296.0,3295.5,1.2871]
[1737928811072,3.81469,3296.0,3295.5,1.2871]
[1737928811278,3.2078,3296.0,3295.5,1.2871]
[1737928811783,2.4356,3296.5,3295.6,1.63126853]
[1737928811784,3.2078,3296.4,3295.6,1.63126853]
[1737928811982,3.2078,3296.4,3295.9,0.60688]
[1737928812583,3.81462,3296.4,3295.8,0.6069]
[1737928812786,3.2078,3296.4,3295.6,1.63126853]
[1737928812984,3.2078,3296.4,3295.9,0.60688]
[1737928813184,3.81461,3296.4,3295.8,0.6069]
[1737928813780,3.2078,3296.4,3296.0,0.60687]
[1737928813982,3.2078,3296.8,3296.3,0.60682]
[1737928814177,3.2078,3296.8,3296.3,1.1677]
[1737928814492,0.60676,3296.7,3296.3,1.1677]
[1737928814786,3.2078,3296.8,3296.3,1.1677]
[1737928814985,3.2078,3296.8,3296.4,0.6068]
[1737928815186,3.2078,3296.8,3296.3,1.1677]
[1737928815489,3.2078,3296.8,3296.6,0.60676]
[1737928816286,3.2078,3296.8,3296.7,1.88555]
[1737928816685,3.2078,3296.8,3296.7,1.2788]
[1737928817387,3.2078,3296.8,3296.7,1.88555]
[1737928817585,3.2078,3296.8,3296.7,1.2788]
[1737928817786,3.2078,3296.8,3296.7,1.88555]
[1737928818692,0.00454911,3297.3,3297.1,0.60666]
[1737928818993,0.00454911,3297.3,3297.1,0.60667]
[1737928819395,0.00454911,3297.3,3297.1,1.89397]
[1737928819794,0.00454911,3297.3,3297.1,1.2873]
[1737928820092,0.00454911,3297.3,3297.1,1.89397]
[1737928820287,0.00454911,3297.3,3297.1,1.2873]
[1737928821092,0.00454911,3297.3,3297.2,0.60666]
[1737928823084,0.00454911,3297.3,3297.1,1.2873]
[1737928823398,3.21234911,3297.3,3296.8,0.60672]
[1737928823694,3.21234911,3297.3,3296.7,3.51681853]
[1737928823882,1.2741,3297.2,3296.7,2.91006853]
[1737928824087,1.2741,3297.2,3296.9,0.6067]
[1737928825498,3.21234911,3297.3,3297.2,0.60666]
[1737928826493,0.00454911,3297.3,3297.2,3.81446]
[1737928826894,3.2078,3298.2,3297.8,0.60654]
[1737928827500,3.2078,3298.2,3297.7,1.2589]
[1737928827802,3.2078,3298.2,3297.7,1.86547]
[1737928828196,3.2078,3298.2,3297.7,1.2589]
[1737928828596,3.2078,3298.2,3297.8,0.60654]
[1737928828798,3.2078,3298.2,3297.8,0.60655]
[1737928829205,3.2078,3298.2,3297.7,1.2589]
[1737928829401,3.2078,3298.2,3297.9,0.60653]
[1737928830002,3.2078,3298.2,3297.8,0.60654]
[1737928830199,3.2078,3298.2,3297.7,1.2589]
[1737928830200,3.2078,3298.2,3297.9,0.60653]
[1737928831006,3.2078,3298.2,3297.8,0.60654]
[1737928831702,3.2078,3298.2,3297.7,2.5158]
[1737928831907,3.2078,3298.2,3297.9,0.60652]
[1737928832908,3.2078,3298.2,3297.7,2.5158]
[1737928833405,0.60654,3297.9,3297.6,0.00454911]